Cogmind - Beta 13 @@@ ROGUE MODE // 2024.04.12 @ 20:31:30 Player: J-mop Result: Destroyed by G-47 Trooper with Particle Gun Performance ------------- Evolutions (0) 0 Regions Visited (1) 200 Robots Destroyed (4) 20 Value Destroyed (90) 90 Prototype IDs (0) 0 Alien Tech Used (0) 0 Bonus (0) 0 TOTAL SCORE: 310 Bonus ------- None Cogmind --------- Core Integrity 0/250 Matter 295/300 Energy 60/100 System Corruption 0% Temperature Cool (9) Movement Core (100) Ox1 Location -10/Materials Parts ------- > --- POWER (1) -------- (None) > --- PROPULSION (2) --- (None) > --- UTILITY (2) ------ Small Storage Unit > --- WEAPON (2) ------- (None) > --- INVENTORY (8) ---- Light Treads Light Treads Hacking Suite Peak State ------------ > --- POWER ------------ Ion Engine > --- PROPULSION ------- Light Treads Aluminum Leg > --- UTILITY ---------- Small Storage Unit > --- WEAPON ----------- Small Laser Light Assault Rifle > --- INVENTORY -------- Ion Engine Light Treads Aluminum Leg Hacking Suite [Rating: 6] Favorites ----------- Power Ion Engine Engine Ion Engine Propulsion Light Treads Treads Light Treads Leg Aluminum Leg Utility Small Storage Unit Storage Small Storage Unit Weapon Small Laser Energy Gun Small Laser Ballistic Gun Light Assault Rifle Special Weapon Mining Laser Build | -11 -10 ------- Run | Yrd Mat Slots Evolved . | . . Power . | . . Propulsion . | . . Utility . | . . Weapon . | . . Parts Attached 10 | 5 5 Power 2 | 1 1 Engine 2 | 1 1 Core . | . . Reactor . | . . Propulsion 3 | 1 2 Treads 1 | 1 . Leg 2 | . 2 Wheel . | . . Hover . | . . Flight . | . . Utility 1 | 1 . Device . | . . Storage 1 | 1 . Processor . | . . Hackware . | . . Protection . | . . Artifact . | . . Weapon 4 | 2 2 Energy Gun 2 | 1 1 Energy Cannon . | . . Ballistic Gun 1 | 1 . Ballistic Cannon . | . . Launcher . | . . Special Weapon 1 | . 1 Impact Weapon . | . . Slashing Weapon . | . . Piercing Weapon . | . . Special Melee Weapon . | . . Unidentified Prototypes . | . . Parts Lost 8 | . 8 Power 2 | . 2 Propulsion 2 | . 2 Utility . | . . Weapon 4 | . 4 Highest Loss Streak 8 | . 8 To Critical Strikes . | . . Average Slot Usage (%) 67 | . 67 Engine 12 | . 12 Treads 9 | . 9 Leg 5 | . 5 Storage 14 | . 14 Energy Gun 12 | . 12 Ballistic Gun 11 | . 11 Naked Turns . | . . Heaviest Build 12 | 12 12 Greatest Support 20 | 20 20 Greatest Overweight (x) 1 | . 1 Average Overweight (x) . | . . Largest Inventory Capacity 8 | 8 8 Average Capacity 7 | 7 8 Most Carried 5 | 3 5 Average Carried 2 | 1 2 Final Capacity 8 | 8 8 Final Carried 3 | 2 3 Class Distribution -------------------- 100% | Mutant Dominant Class ---------------- Mutant | -10/Materials Resources | -11 -10 ----------- Run | Yrd Mat Matter Collected 293 | 220 73 Remotely . | . . Salvage Created 134 | 59 75 Parts 9 | 2 7 Haulers Intercepted . | . . Recyclers Shooed . | . . Parts Field Recycled . | . . Retrieved Matter . | . . Parts Self-Destructed . | . . Prevented . | . . Kills | -11 -10 ------- Run | Yrd Mat Combat Hostiles Destroyed 2 | . 2 Guns 2 | . 2 Classes Destroyed 3 | 1 2 Recycler 1 | 1 . Operator 1 | . 1 Grunt 2 | . 2 Best Kill Streak 2 | 1 2 Combat Bots Only 2 | . 2 Max Kills in Single Turn 1 | 1 1 Gunslinging . | . . Exploded . | . . Melee . | . . Uniques/NPCs Destroyed . | . . Combat | -11 -10 -------- Run | Yrd Mat Hostile Shots Fired 142 | . 142 Missed 44 | . 44 Damage Taken 961 | . 961 Core 263 | . 263 Absorbed by Shields . | . . Core Remaining (%) 100 | 100 . Volleys Fired 34 | 4 30 Largest 2 | 2 2 Hottest 100 | 60 100 Shots Fired 61 | 8 53 Gun 60 | 8 52 Cannon . | . . Launcher . | . . Special 1 | . 1 Kinetic 28 | 4 24 Thermal 33 | 4 29 Explosive . | . . Electromagnetic . | . . Robot Hit Streak 3 | 3 3 Robot Miss Streak 7 | 2 7 Penetration Max . | . . Secondary Targets . | . . Shots Hit Robots 21 | 5 16 Core Hits 12 | 3 9 Critical Kills . | . . Critical Parts Destroyed . | . . Critical Strikes . | . . Melee Attacks . | . . Impact . | . . Slashing . | . . Piercing . | . . Sneak Attacks . | . . Combat Hostiles . | . . Follow-up Attacks . | . . Damage Inflicted 280 | 47 233 Guns 280 | 47 233 Cannons . | . . Explosions . | . . Melee . | . . Ramming . | . . Kinetic 113 | 13 100 Thermal 167 | 34 133 Explosive . | . . Electromagnetic . | . . Impact . | . . Slashing . | . . Piercing . | . . Highest Corruption . | . . Average Corruption . | . . Corruption Purged . | . . Corruption Blocked . | . . Overload Shots . | . . Overflow Damage . | . . Projectiles . | . . Explosions . | . . Melee . | . . Knockbacks . | . . Impact . | . . Kinetic . | . . Secondary . | . . Self-Inflicted Damage . | . . Shots . | . . Rammed . | . . Targets Rammed . | . . Kicked . | . . Crushed . | . . Highest Temperature 224 | 40 224 Average Temperature 78 | 21 86 Received Heat Transfer 303 | . 303 Siege Activations . | . . Robots Corrupted . | . . Combat Hostiles . | . . Parts Fried . | . . Impact Corruptions . | . . Robots Melted . | . . Combat Hostiles . | . . Parts Melted . | . . Heat Transferred 375 | 75 300 Parts Sabotaged . | . . Parts Stolen . | . . Parts Stripped . | . . Power Chain Reactions . | . . Alert | -11 -10 ------- Run | Yrd Mat Peak Influence 88 | 5 88 Initial 3 | . 3 Average 27 | . 36 Maximum Alert Level . | . . Low Security (%) 100 | 100 100 Level 1 . | . . Level 2 . | . . Level 3 . | . . Level 4 . | . . Level 5 . | . . High Security . | . . Max Security . | . . Squads Dispatched 1 | . 1 Investigation . | . . Extermination . | . . Reinforcement 1 | . 1 Assault . | . . Garrison . | . . Intercept . | . . Searches Triggered . | . . Construction Impeded . | . . Haulers Reinforced . | . . Active Scanning Responses . | . . Cargo Convoy Interrupts . | . . Stealth | -11 -10 --------- Run | Yrd Mat Distress Signals 1 | . 1 Communications Jammed . | . . Distress Signals . | . . Times Spotted 14 | . 14 Peak Tracking Total 6 | . 6 Tactical Retreats . | . . Traps | -11 -10 ------- Run | Yrd Mat Traps Triggered . | . . Indirectly . | . . Trap Hack Attempts . | . . Triggered . | . . Disarmed . | . . Reprogrammed . | . . Reused . | . . Traps Extracted . | . . Installed . | . . Triggered . | . . Machines | -11 -10 ---------- Run | Yrd Mat Machines Disabled . | . . Max in Single Turn . | . . Machines Repaired . | . . Machines Dismantled . | . . Machines Sabotaged . | . . Overloaded Fab Kills . | . . Hacking | -11 -10 --------- Run | Yrd Mat Machines Accessed 1 | . 1 Terminals 1 | . 1 Fabricators . | . . Repair Stations . | . . Recycling Units . | . . Scanalyzers . | . . Garrison Access . | . . Total Hacks 1 | . 1 Successful . | . . Failed 1 | . 1 Catastrophic . | . . Database Lockouts . | . . Manual 1 | . 1 Terminals 1 | . 1 Fabricators . | . . Repair Stations . | . . Recycling Units . | . . Scanalyzers . | . . Garrison Access . | . . Terminal Hacks . | . . Fabricator Hacks . | . . Repair Station Hacks . | . . Recycling Unit Hacks . | . . Scanalyzer . | . . Garrison Access Hacks . | . . Unauthorized Hacks . | . . Terminals . | . . Fabricators . | . . Repair Stations . | . . Recycling Units . | . . Scanalyzers . | . . Garrison Access . | . . Data Cores Recovered . | . . Used . | . . Hacking Detections 1 | . 1 Full Trace Events . | . . Feedback Events . | . . Feedback Blocked . | . . Robot Schematics Acquired . | . . Robots Built . | . . Authchips . | . . Time . | . . Total Robot Build Rating . | . . Part Schematics Acquired . | . . Parts Built . | . . Authchips . | . . Time . | . . Total Part Build Rating . | . . Parts Repaired . | . . Time . | . . Parts Recycled . | . . Recycled Matter . | . . Retrieved Matter . | . . Retrieved Components . | . . Parts Scanalyzed . | . . Part Schematics Acquired . | . . Parts Damaged . | . . Bothacking | -11 -10 ------------ Run | Yrd Mat Used RIF Installer . | . . Robots Hacked . | . . Non-combat . | . . Combat . | . . Robot Hacks Applied . | . . Relay Couplers Released . | . . Fabnet Peak Effective % . | . . Robots Rewired . | . . Allies Hacked . | . . Hacks Repelled . | . . Allies | -11 -10 -------- Run | Yrd Mat Total Allies . | . . Largest Group . | . . Highest-Rated Group . | . . Highest-Rated Ally . | . . Total Orders . | . . Ally Attacks . | . . Total Damage . | . . Kills . | . . Allies Corrupted . | . . Allies Melted . | . . Intel | -11 -10 ------- Run | Yrd Mat Robot Analysis Total . | . . Derelict Logs Recovered . | . . Drone Launches . | . . Drone Recoveries . | . . Exploration | -11 -10 ------------- Run | Yrd Mat Turns Passed 329 | 85 244 Spaces Moved 145 | 42 103 Core 11 | 4 7 Treads 106 | 38 68 Legs 28 | . 28 Wheels . | . . Hover . | . . Flight . | . . Fastest Speed 50 | 50 100 Average Speed 149 | 149 149 Slowest Speed 190 | 160 190 Overloaded Moves . | . . Propulsion Burnouts . | . . Robots Hopped . | . . Cave-ins Triggered . | . . Exploration Rate (%) 15 | 5 25 Regions Visited 1 Branch Regions . Pre-discovered Areas . | . . Known Exits Taken . | . . Unknown Exits Taken 1 | 1 . Scrap Searched . | . . Spaces Dug . | . . Terrain Destroyed . | . . Melee . | . . Projectile . | . . AOE . | . . Terrain Rammed . | . . Walls Destroyed . | . . Machines Disabled . | . . Actions | -11 -10 --------- Run | Yrd Mat Total 200 | 57 143 Wait . | . . Move 144 | 41 103 Hop . | . . Pick Up 12 | 7 5 Fast Attach . | . . Attach 9 | 5 4 Detach . | . . Swap 1 | . 1 Drop . | . . Fire 34 | 4 30 Melee . | . . Ram . | . . Kick . | . . Crush . | . . Escape Stasis . | . . Rewire . | . . Trap . | . . Miscellaneous . | . . Route ------- -11/Scrapyard -10/Materials History --------- Turn | Location | Event 15 | -11/Scrapyard | Discovered new exit (range 16) 86 | -11/Scrapyard | Entered Materials 298 | -10/Materials | Core integrity fell below 50% 310 | -10/Materials | Build established: Mutant 317 | -10/Materials | Core integrity fell below 20% 330 | -10/Materials | Destroyed by G-47 Trooper with Particle Gun Last Messages --------------- K-01 Serf collects debris. Sml. Laser destroyed. K-01 Serf collects debris. Acquired Sml. Laser. Ion Engine destroyed. K-01 Serf collects debris. R-06 Scavenger collects Aluminum Leg. K-01 Serf collects debris. Aluminum Leg destroyed. Critical hit (Burn: +37). K-01 Serf collects debris. G-34 Mercenary destroyed. R-06 Scavenger collects Ion Engine. Aluminum Leg destroyed. K-01 Serf collects debris. K-01 Serf cleans the Pressure Siphon. Sml. Laser destroyed. Ion Engine destroyed. Acquired Mining Laser. Mining Laser destroyed. Map ----- +----------------------------------------------------+ | ?????????????????????????????????????????????????? | | ?????????????????????????????????????????????????? | | ?????????????????????????????????????????????????? | | ?????????????????????????????????????????????????? | | ?????????????????????????????????????????????????? | | ?????????????????????????????????????????????????? | | ?????????????????????????????????????????????????? | | ?????????????????????????????????????? ?????????? | | ????????????????????????????????????? ????????? | | ????????????????????????######??????? ?????????? | | ????????????????????????? ?????? #?????????? | | ????????????????????????? ###### #?????????? | | ?????????????????????????? # ??????????? | | ?????????????????????????? + #?????????? | | ??????????????????????????? # ^^ #?????????? | | ??????????????????????????? # """ #?????????? | | ???????????????/ #########+## """ #?????????? | | ???????????????# ^""" #?????????? | | ???????????????# """ #?????????? | | ???????????????# ! ########??? | | ?????????????????????#######+##%[ ?? | | ???????????????????????# """ # ?? | | ???????????????????????# "T" # ?? | | ???????????????????????# a s # #? | | ???????????????????????# ssg #!!! """"""" #? | | ???????????????????????# @ #!! """"""" #? | | ???????????????????????# #!!% """"""" #? | | ???????????????????????######## """"""" #? | | ??????????????????????????????# """"""" #? | | ??????????????????????######### #? | | ??????????????????????# // #? | | ??????????????????????# // #? | | ??????????????????????# / #? | | ??????????????????????# #? | | ??????????????????????# #? | | ??????????????????????# ######## ^^ #? | | ??????????????????????# ????????# ^^ #? | | ??????????????????????# ?????????# ########+####? | | ?????????????????????????????????# #????????????? | | ?????????????????????????????????# #????????????? | | ?????????????????????????????????# #????????????? | | ?????????????????????????????????# #????????????? | | ?????????????????????????????????# #????????????? | | ?????????????????????????????????# #????????????? | | ?????????????????????????????????# #????????????? | | ?????????????????????????????????# #????????????? | | ?????????????????????????????????# #????????????? | | ???????????????????????????????### #####????????? | | ???????????????????????????????# # # #????????? | | ????????????????????????????????# +????????? | +----------------------------------------------------+ Best States ------------- Heat Dissipation 25 Energy Generation 10 Energy Capacity 250 Matter Stores 300 Matter Capacity 300 Sight Range 16 Terrain Scan Density 10 Evasion (%) 45 Recoil Reduction 1 Item Schematics ----------------- None Robot Schematics ------------------ None Fabricated ------------ Nothing Alien Tech Used ----------------- None Achievements -------------- None Challenges ------------ None Game ------ Seed ProtonPhysicsPenetrator Manual? 0 Play Time 00:06:52 Cumulative 18.1 hours Start 2024.04.12 @ 20:27:36 End 2024.04.12 @ 20:31:30 Sessions 1 Manual Loads 0 Difficulty Rogue Special Mode None Game No. 14 Rogue 9 Adventurer 5 Explorer 0 Win Type - Total 0 Types 0/0/0/0/0/0/0/0/0 Lore% 12 Gallery% 15 Achievement% 17 Wizard Run 0 Options --------- Layout 1 ASCII 0 Keyboard 0 Movement Numpad Keybinds 0 Fullscreen 1 Font 24/Smallcaps Map View 50x35 Zoom Use 0% Tactical HUD 0 Map Filters NONE Filters NONE Steam 1 RUN: 6a726e06-ac7f-49d3-900c-2789c420d957